fUST/lending_fUST_20240627
["ID","MTS","AMOUNT","RATE_DAILY","PERIOD"]
[330462190,1719443448469,-151.0,0.0002849,7]
[330462191,1719443448479,-151.0,0.0002849,7]
[330462192,1719443448488,-151.0,0.0002849,7]
[330462193,1719443448497,-151.0,0.0002849,7]
[330462194,1719443448506,-151.0,0.0002849,7]
[330462195,1719443448516,-227.158801,0.0002849,7]
[330462196,1719443448526,-151.0,0.0002849,7]
[330462197,1719443448535,-151.0,0.0002849,7]
[330462198,1719443448544,-264.817644,0.0002849,7]
[330462199,1719443448554,-231.98507,0.0002849,7]
[330462200,1719443448563,-231.98507,0.0002849,7]
[330462201,1719443448573,-151.0,0.0002849,7]
[330462202,1719443448583,-787.29,0.000285,31]
[330462203,1719443448593,-787.29,0.000285,31]
[330462204,1719443448602,-787.29,0.000285,31]
[330462205,1719443448612,-787.29,0.000285,31]
[330462206,1719443448621,-787.29,0.000285,31]
[330462207,1719443448630,-787.29,0.000285,31]
[330462208,1719443448640,-787.29,0.000285,31]
[330462209,1719443448650,-787.29,0.000285,31]
[330462210,1719443448660,-787.29,0.000285,31]
[330462211,1719443448670,-787.29,0.000285,31]
[330462212,1719443448679,-787.29,0.000285,31]
[330462213,1719443448689,-787.29,0.000285,31]
[330462214,1719443448698,-787.29,0.000285,31]
[330462215,1719443448708,-787.29,0.000285,31]
[330462216,1719443448718,-787.29,0.000285,31]
[330462217,1719443448727,-787.29,0.000285,31]
[330462218,1719443448736,-787.29,0.000285,31]
[330462219,1719443448746,-787.29,0.000285,31]
[330462220,1719443448755,-787.29,0.000285,31]
[330462221,1719443448765,-787.29,0.000285,31]
[330462222,1719443448775,-603.3966034,0.00028508,7]
[330462223,1719443448785,-1000.0,0.000288,2]
[330462224,1719443448796,-1206.79320679,0.00029229,30]
[330462225,1719443448806,-1000.0,0.000293,2]
[330462226,1719443448815,-151.0,0.000293,7]
[330462227,1719443448824,-4170.38363525,0.00029756,2]
[330462228,1719443448834,-156.33426625,0.00029756,30]
[330462229,1719443448844,-151.0,0.000298,7]
[330462230,1719443448854,-151.0,0.000298,7]
[330462231,1719443448864,-231.98507,0.000298,7]
[330462232,1719443448873,-231.98507,0.000298,7]
[330462233,1719443448882,-151.0,0.000298,7]
[330462234,1719443448891,-1000.0,0.000298,2]
[330462235,1719443448902,-909.25491549,0.00029861,30]
[330462236,1719443448911,-4101.83177878,0.00029861,2]
[330462237,1719443448921,-878.62139978,0.00029879,2]
[330462238,1719443448930,-150.0,0.00029994,2]
[330462239,1719443448939,-150.0,0.00029994,2]
[330462240,1719443448948,-200.0,0.00029994,2]
[330462241,1719443448958,-642.05782593,0.0003,4]
[330462242,1719443448967,-195.0,0.0003,2]
[330462243,1719443448976,-787.29,0.000305,31]
[330462244,1719443448986,-787.29,0.000305,31]
[330462245,1719443448995,-787.29,0.000305,31]
[330462246,1719443449004,-787.29,0.000305,31]
[330462247,1719443449014,-787.29,0.000305,31]
[330462248,1719443449025,-787.29,0.000305,31]
[330462249,1719443449034,-787.29,0.000305,31]
[330462250,1719443449044,-787.29,0.000305,31]
[330462251,1719443449053,-787.29,0.000305,31]
[330462252,1719443449062,-787.29,0.000305,31]
[330462253,1719443449072,-787.29,0.000305,31]
[330462254,1719443449081,-787.29,0.000305,31]
[330462255,1719443449090,-787.29,0.000305,31]
[330462256,1719443449099,-787.29,0.000305,31]
[330462257,1719443449108,-787.29,0.000305,31]
[330462258,1719443449118,-787.29,0.000305,31]
[330462259,1719443449127,-787.29,0.000305,31]
[330462260,1719443449141,-787.29,0.000305,31]
[330462261,1719443449150,-787.29,0.000305,31]
[330462262,1719443449160,-787.29,0.000305,31]
[330462263,1719443449170,-151.0,0.000305,7]
[330462264,1719443449179,-151.0,0.000305,7]
[330462265,1719443449188,-151.0,0.000305,7]
[330462266,1719443449198,-151.0,0.000305,7]
[330462267,1719443449207,-151.0,0.000305,7]
[330462268,1719443449220,-151.0,0.0003239,7]
[330462269,1719443449229,-151.0,0.0003239,7]
[330462270,1719443449336,-151.0,0.0003239,7]
[330462271,1719443449346,-151.0,0.0003239,7]
[330462272,1719443449355,-151.0,0.0003239,7]
[330462273,1719443449364,-209.6506,0.0003239,7]
[330462274,1719443449374,-151.0,0.0003239,7]
[330462275,1719443449383,-231.98507,0.0003239,7]
[330462276,1719443449392,-231.98507,0.0003239,7]
[330462277,1719443449402,-151.0,0.0003239,7]
[330462278,1719443449411,-787.29,0.000324,31]
[330462279,1719443449420,-787.29,0.000324,31]
[330462280,1719443449430,-787.29,0.000324,31]
[330462281,1719443449440,-787.29,0.000324,31]
[330462282,1719443449449,-787.29,0.000324,31]
[330462283,1719443449459,-787.29,0.000324,31]
[330462284,1719443449468,-787.29,0.000324,31]
[330462285,1719443449477,-787.29,0.000324,31]
[330462286,1719443449487,-787.29,0.000324,31]
[330462287,1719443449496,-787.29,0.000324,31]
[330462288,1719443449505,-787.29,0.000324,31]
[330462289,1719443449514,-787.29,0.000324,31]
[330462290,1719443449525,-787.29,0.000324,31]
[330462291,1719443449535,-787.29,0.000324,31]
[330462292,1719443449545,-787.29,0.000324,31]
[330462293,1719443449554,-787.29,0.000324,31]
[330462294,1719443449563,-787.29,0.000324,31]
[330462295,1719443449572,-787.29,0.000324,31]
[330462296,1719443449582,-787.29,0.000324,31]
[330462297,1719443449592,-787.29,0.000324,31]
[330462298,1719443449601,-151.0,0.000324,7]
[330462299,1719443449611,-151.0,0.000324,7]
[330462300,1719443449620,-151.0,0.000324,7]
[330462301,1719443449629,-151.0,0.000324,7]
[330462302,1719443449639,-151.0,0.000324,7]
[330462303,1719443449652,-151.0,0.000324,7]
[330462304,1719443449661,-231.98507,0.000324,7]
[330462305,1719443449670,-231.98507,0.000324,7]
[330462306,1719443449679,-151.0,0.000324,7]
[330462307,1719443449689,-195.0,0.00033,2]
[330462308,1719443449698,-195.0,0.00033,2]
[330462309,1719443449708,-154.83742071,0.00033292,4]
[330462310,1719443449717,-750.0,0.00033295,2]
[330462311,1719443449727,-173.355712,0.00033598,2]
[330462312,1719443449736,-5281.22672423,0.00033649,2]
[330462313,1719443449746,-151.0,0.0003404,7]
[330462314,1719443449755,-151.0,0.0003404,7]
[330462315,1719443449764,-192.485472,0.0003404,7]
[330462316,1719443449774,-175.764658,0.0003404,7]
[330462317,1719443449783,-151.0,0.0003404,7]
[330462318,1719443449793,-151.0,0.0003404,7]
[330462319,1719443449803,-231.98507,0.0003404,7]
[330462320,1719443449812,-231.98507,0.0003404,7]
[330462321,1719443449822,-151.0,0.0003404,7]
[330462322,1719443449831,-151.0,0.0003406,7]
[330462323,1719443449840,-151.0,0.0003406,7]
[330462324,1719443449849,-151.0,0.0003406,7]
[330462325,1719443449859,-216.109453,0.0003409,7]
[330462326,1719443449869,-151.0,0.0003409,7]
[330462327,1719443449878,-151.0,0.0003409,7]
[330462328,1719443449887,-151.0,0.0003409,7]
[330462329,1719443449896,-231.98507,0.0003409,7]
[330462330,1719443449906,-231.98507,0.0003409,7]
[330462331,1719443449915,-261.434097,0.0003409,7]
[330462332,1719443449925,-599.84,0.00034099,2]
[330462333,1719443449934,-599.84,0.00034099,2]
[330462334,1719443449956,-599.84,0.00034099,2]
[330462335,1719443449967,-599.84,0.00034099,2]
[330462336,1719443449978,-599.84,0.00034099,2]
[330462337,1719443449988,-599.84,0.00034099,2]
[330462338,1719443449998,-599.84,0.00034099,2]
[330462339,1719443450007,-599.84,0.00034099,2]
[330462340,1719443450018,-599.84,0.00034099,2]
[330462341,1719443450029,-599.84,0.00034099,2]
[330462342,1719443450039,-33077.52334259,0.000341,4]
[330462360,1719444632757,-158.101524,0.00014795,2]
[330462361,1719444632768,-18712.01956018,0.00018798,2]
[330462397,1719444639023,-1706.86491758,0.00020996,2]
[330462398,1719444639036,-750.0,0.00021096,2]
[330462399,1719444639050,-878.62139978,0.0002242,2]
[330462400,1719444639064,-158.101524,0.00025903,2]
[330462401,1719444639075,-150.0,0.000265,2]
[330462402,1719444639085,-157.77,0.000266,31]
[330462403,1719444639096,-157.77,0.000266,31]
[330462404,1719444639106,-157.77,0.000266,31]
[330462406,1719444639117,-157.77,0.000266,31]
[330462408,1719444639127,-157.77,0.000266,31]
[330462409,1719444639137,-157.77,0.000266,31]
[330462410,1719444639147,-157.77,0.000266,31]
[330462411,1719444639373,-157.77,0.000266,31]
[330462412,1719444639403,-157.77,0.000266,31]
[330462413,1719444639414,-157.77,0.000266,31]
[330462414,1719444639424,-157.77,0.000266,31]
[330462415,1719444639434,-157.77,0.000266,31]
[330462416,1719444639444,-157.77,0.000266,31]
[330462417,1719444639454,-157.77,0.000266,31]
[330462418,1719444639464,-157.77,0.000266,31]
[330462419,1719444639475,-157.77,0.000266,31]
[330462420,1719444639490,-157.77,0.000266,31]
[330462421,1719444639500,-157.77,0.000266,31]
[330462422,1719444639511,-157.77,0.000266,31]
[330462423,1719444639522,-157.77,0.000266,31]
[330462424,1719444639536,-154.83742071,0.00026848,2]
[330462425,1719444639546,-750.0,0.00027195,2]
[330462426,1719444639556,-909.25491549,0.000275,30]
[330462427,1719444639567,-157.77,0.000285,31]
[330462428,1719444639578,-157.77,0.000285,31]
[330462429,1719444639588,-157.77,0.000285,31]
[330462430,1719444639598,-157.77,0.000285,31]
[330462431,1719444639610,-157.77,0.000285,31]
[330462432,1719444639621,-157.77,0.000285,31]
[330462433,1719444639631,-157.77,0.000285,31]
[330462434,1719444639642,-157.77,0.000285,31]
[330462435,1719444639653,-157.77,0.000285,31]
[330462436,1719444639663,-157.77,0.000285,31]
[330462437,1719444639673,-157.77,0.000285,31]
[330462438,1719444639684,-157.77,0.000285,31]
[330462439,1719444639694,-157.77,0.000285,31]
[330462440,1719444639705,-157.77,0.000285,31]
[330462441,1719444639715,-157.77,0.000285,31]
[330462442,1719444639725,-157.77,0.000285,31]
[330462443,1719444639738,-157.77,0.000285,31]
[330462444,1719444639748,-157.77,0.000285,31]
[330462445,1719444639758,-157.77,0.000285,31]
[330462446,1719444639768,-157.77,0.000285,31]
[330462447,1719444639779,-166.666666,0.00028527,2]
[330462448,1719444639789,-150.0,0.00028842,2]
[330462449,1719444639799,-876.0,0.00028842,2]
[330462450,1719444639810,-166.666666,0.00029305,2]
[330462451,1719444639821,-394.90145033,0.00029901,2]
[330462452,1719444639831,-150.0,0.00029988,2]
[330462453,1719444639842,-150.0,0.00029988,2]
[330462454,1719444639852,-200.0,0.00029988,2]
[330462455,1719444639863,-470.57395555,0.0003,4]
[330462456,1719444639874,-154.83742071,0.0003,4]
[330462457,1719444639884,-196.0,0.0003,2]
[330462458,1719444639894,-166.666666,0.00030083,2]
[330462459,1719444639904,-350.70789883,0.00030229,30]
[330462460,1719444639915,-157.77,0.000305,31]
[330462461,1719444639924,-157.77,0.000305,31]
[330462462,1719444639934,-157.77,0.000305,31]
[330462463,1719444639944,-157.77,0.000305,31]
[330462464,1719444639954,-157.77,0.000305,31]
[330462465,1719444639964,-157.77,0.000305,31]
[330462466,1719444639974,-157.77,0.000305,31]
[330462467,1719444639988,-157.77,0.000305,31]
[330462468,1719444639998,-157.77,0.000305,31]
[330462469,1719444640009,-157.77,0.000305,31]
[330462470,1719444640019,-157.77,0.000305,31]
[330462471,1719444640030,-157.77,0.000305,31]
[330462472,1719444640040,-157.77,0.000305,31]
[330462473,1719444640051,-157.77,0.000305,31]
[330462474,1719444640061,-157.77,0.000305,31]
[330462475,1719444640072,-157.77,0.000305,31]
[330462476,1719444640082,-157.77,0.000305,31]
[330462477,1719444640093,-157.77,0.000305,31]
[330462478,1719444640102,-157.77,0.000305,31]
[330462479,1719444640113,-157.77,0.000305,31]
[330462480,1719444640123,-166.666666,0.0003086,2]
[330462481,1719444640133,-166.666666,0.00031638,2]
[330462482,1719444640143,-150.84915085,0.00032055,2]
[330462483,1719444640154,-157.77,0.000324,31]
[330462484,1719444640164,-157.77,0.000324,31]
[330462485,1719444640174,-157.77,0.000324,31]
[330462486,1719444640185,-157.77,0.000324,31]
[330462487,1719444640195,-157.77,0.000324,31]
[330462488,1719444640205,-157.77,0.000324,31]
[330462489,1719444640215,-157.77,0.000324,31]
[330462490,1719444640226,-157.77,0.000324,31]
[330462491,1719444640238,-157.77,0.000324,31]
[330462492,1719444640248,-157.77,0.000324,31]
[330462494,1719444640258,-157.77,0.000324,31]
[330462496,1719444640268,-157.77,0.000324,31]
[330462497,1719444640278,-157.77,0.000324,31]
[330462499,1719444640288,-157.77,0.000324,31]
[330462501,1719444640299,-157.77,0.000324,31]
[330462504,1719444640312,-157.77,0.000324,31]
[330462506,1719444640323,-166.666666,0.00032416,2]
[330462508,1719444640332,-301.6983017,0.00032594,4]
[330462510,1719444640342,-603.3966034,0.00033142,7]
[330462512,1719444640352,-750.0,0.00033295,2]
[330462514,1719444640362,-153.0,0.00033425,2]
[330462516,1719444640372,-5281.22672423,0.0003397,2]
[330462518,1719444640382,-196.0,0.00033973,2]
[330462520,1719444640392,-153.0,0.00033973,2]
[330462522,1719444640403,-153.0,0.00033973,2]
[330462524,1719444640413,-153.0,0.00033973,2]
[330462526,1719444640423,-153.0,0.00033973,2]
[330462528,1719444640433,-306.0,0.00033973,2]
[330462529,1719444640443,-1206.79320679,0.00033981,30]
[330462530,1719444640453,-117445.598929,0.0003404,3]
[330462531,1719444640463,-2000.0,0.00034089,60]
[330462532,1719444640473,-2000.0,0.00034089,60]
[330462533,1719444640485,-2000.0,0.00034089,60]
[330462534,1719444640495,-2000.0,0.00034089,60]
[330462535,1719444640505,-2000.0,0.00034089,60]
[330462536,1719444640515,-853.43,0.00034089,60]
[330462537,1719444640527,-25206.44914902,0.0003409,3]
[330462567,1719444640886,-707.07569986,0.0003403,3]
[330462570,1719444640899,-21907.2380697,0.0003403,3]
[330462635,1719445799035,-158.053804,0.00014795,2]
[330462702,1719445846609,-702.95848849,0.000189,2]
[330462703,1719445846619,-21.97405135,0.000198,15]
[330462704,1719445937511,156.33426625,0.000198,30]
[330462705,1719445952440,156.33426625,0.000198,30]
[330462706,1719446083441,156.33426625,0.000198,30]
[330462707,1719446169458,156.33426625,0.000198,30]
[330462708,1719446273451,156.33426625,0.000198,30]
[330462709,1719446368680,156.33426625,0.000198,30]
[330462710,1719446472531,156.33426625,0.000198,30]
[330462711,1719446583468,156.33426625,0.000198,30]
[330462712,1719446598484,156.33426625,0.000198,30]
[330462750,1719446973080,-158.041568,0.00014795,2]
[330462857,1719447043851,-158.041568,0.00014795,2]
[330462858,1719447043860,-348.08165478,0.00018494,2]
[330462902,1719447234059,517.74740795,9.999e-05,2]
[330462903,1719447256670,10000.0,0.000225,30]
[330462904,1719447280337,10000.0,0.000225,30]
[330462905,1719447416821,525.65295456,0.00023966,60]
[330462906,1719447593381,154.94537953,9.999e-05,2]
[330462907,1719447678567,206.16607887,0.0001212,2]
[330462910,1719448059877,525.65295456,0.00023966,60]
[330462912,1719448115581,-158.041568,0.00014795,2]
[330462913,1719448115610,-505.79864196,0.00014999,2]
[330462914,1719448115644,-663.84020996,0.00014999,2]
[330462915,1719448115694,-401.92067416,0.00014999,2]
[330462934,1719448237886,-191.27910328,0.00014999,2]
[330462935,1719448237896,-333.34473273,0.00015,2]
[330462936,1719448237905,-117.09422994,0.00015,2]
[330462937,1719448237917,-211.30265039,0.00015,2]
[330462938,1719448237926,-412.99386229,0.00016255,2]
[330462966,1719448240088,-13755.51125233,0.00016255,2]
[330462967,1719448240098,-5274.08650964,0.00018245,2]
[330462968,1719448240107,-299.72285891,0.00018798,2]
[330462969,1719448240116,-1493.50680283,0.00018798,2]
[330462970,1719448240126,-394.90145033,0.00018798,2]
[330462971,1719448240135,-12206.97874588,0.00018798,2]
[330463050,1719448597528,1205.54859605,9.999e-05,2]
[330463051,1719448787620,276.12022579,9.999e-05,2]
[330463052,1719448818901,525.65295456,0.00023966,60]
[330463053,1719448861412,525.65295456,0.0001212,2]
[330463054,1719448873104,329.48964541,9.999e-05,2]
[330463055,1719448926414,527.60567193,0.0001212,2]
[330463114,1719449125245,534.01,0.00029756,120]
[330463122,1719449253167,394.90145033,0.00029756,120]
[330463140,1719449438209,-158.041568,0.00014795,2]
[330463141,1719449438219,-198.89722895,0.00015,2]
[330463208,1719449440675,-469.05134205,0.00015,2]
[330463210,1719449440685,-276.15513312,0.0001682,2]
[330463212,1719449440695,-394.90145033,0.00016972,2]
[330463214,1719449440704,-155.52477608,0.0001871,2]
[330463216,1719449440713,-154.83742071,0.00018798,2]
[330463218,1719449440722,-27220.35588497,0.00018898,2]
[330463220,1719449440731,-811.14465118,0.00019039,3]
[330463221,1719449440740,-1306.81845252,0.00019078,2]
[330463223,1719449440750,-163.724839,0.00019178,2]
[330463226,1719449440759,-2055.03308752,0.000198,15]
[330463275,1719449510363,394.90145033,0.00029756,120]
[330463277,1719449557818,151.0,0.00029756,120]
[330463278,1719449580669,300.0,0.00029756,120]
[330463279,1719449648360,500.0,0.000241,59]
[330463308,1719449731013,470.0,0.00029756,120]
[330463309,1719450074063,1012.65486333,9.999e-05,2]
[330463311,1719450149591,4026.74481855,0.0001212,2]
[330463313,1719450292118,182.46691096,9.999e-05,2]
[330463366,1719450638797,-158.041568,0.00014795,2]
[330463367,1719450638807,-667.948571,0.00015,2]
[330463368,1719450638816,-276.15513312,0.00016828,2]
[330463369,1719450638826,-276.15513312,0.00016828,2]
[330463370,1719450638835,-165.83348121,0.00017274,2]
[330463371,1719450638848,-134.16651879,0.00017274,2]
[330463372,1719450638860,-16649.6342762,0.00017275,2]
[330463373,1719450638872,-190.79546937,0.00018798,2]
[330463374,1719450638881,-154.83742071,0.00018798,2]
[330463375,1719450638891,-154.83742071,0.00018798,2]
[330463376,1719450638901,-826.10060043,0.00018798,2]
[330463377,1719450638911,-161.95140232,0.00018798,2]
[330463378,1719450638920,-1143.46614592,0.000188,2]
[330463379,1719450638930,-299.7228589,0.00018898,2]
[330463380,1719450638942,-30000.0,0.00018898,2]
[330463381,1719450638952,-2155.10284662,0.000189,2]
[330463382,1719450638961,-156.87943307,0.00018986,2]
[330463383,1719450638971,-811.36838194,0.00019039,3]
[330463384,1719450638981,-3265.8723535,0.000198,15]
[330463385,1719450638991,-151.0,0.000198,2]
[330463386,1719450639001,-151.0,0.000198,2]
[330463387,1719450639010,-151.0,0.000198,2]
[330463388,1719450639020,-1254.99204768,0.0002,2]
[330463389,1719450639037,-4859.71170598,0.0002,2]
[330463390,1719450639047,-292.98056546,0.0002,2]
[330463391,1719450639058,-151.0,0.0002,2]
[330463392,1719450639068,-151.0,0.0002,2]
[330463393,1719450639078,-151.0,0.0002,2]
[330463394,1719450639088,-151.0,0.0002,2]
[330463395,1719450639097,-151.0,0.0002,2]
[330463396,1719450639108,-151.0,0.0002,2]
[330463397,1719450639117,-151.0,0.0002,2]
[330463398,1719450639134,-750.0,0.00021096,2]
[330463399,1719450639152,-171.681795,0.00021096,2]
[330463400,1719450639165,-161.9514023,0.00021513,2]
[330463401,1719450639182,-166.666666,0.00021918,2]
[330463402,1719450639199,-151.0,0.00021918,7]
[330463403,1719450639214,-151.0,0.00021918,7]
[330463404,1719450639231,-151.0,0.00021918,7]
[330463405,1719450639248,-151.0,0.00021918,7]
[330463406,1719450639265,-151.0,0.00021918,7]
[330463407,1719450639279,-151.0,0.00021918,7]
[330463408,1719450639292,-151.0,0.00021918,7]
[330463409,1719450639309,-151.0,0.00021918,7]
[330463410,1719450639323,-151.0,0.00021918,7]
[330463411,1719450639335,-151.0,0.00021918,7]
[330463412,1719450639348,-159.99540173,0.00022016,2]
[330463413,1719450639362,-151.0,0.00022016,7]
[330463414,1719450639377,-153.084936,0.00022236,7]
[330463415,1719450639392,-3.34898225,0.00022236,7]
[330463416,1719450639414,-147.65101775,0.00022236,7]
[330463417,1719450639429,-151.0,0.00022236,7]
[330463418,1719450639441,-151.0,0.00022236,7]
[330463419,1719450639453,-550.55858058,0.00022236,5]
[330463420,1719450639472,-449.44141942,0.00022236,5]
[330463421,1719450639489,-1000.0,0.00022236,5]
[330463422,1719450639502,-1000.0,0.00022236,5]
[330463423,1719450639515,-1000.0,0.00022236,5]
[330463424,1719450639529,-45.83422075,0.00022236,5]
[330464960,1719451533650,154.83742071,9.999e-05,2]
[330464961,1719451573647,191.67514156,0.0001212,2]
[330464962,1719451644103,1.56909251,9.999e-05,2]
[330464963,1719451644140,215.79968211,9.999e-05,2]
[330464964,1719451804605,-158.041568,0.00014795,2]
[330464965,1719451810526,150.22273389,9.9e-05,2]
[330464987,1719451833043,-158.041568,0.00014795,2]
[330464988,1719451833052,-577.658432,0.00015,2]
[330464990,1719451833064,-90.290139,0.00015,2]
[330464992,1719451833075,-2824.23165146,0.00015,2]
[330464994,1719451833083,-290.3613859,0.000165,2]
[330464996,1719451833092,-238.354229,0.00016918,2]
[330464998,1719451833102,-211.3718553,0.00018,2]
[330465000,1719451833111,-300.0,0.00018796,2]
[330465001,1719451833120,-1000.53287768,0.00018797,2]
[330465003,1719451833129,-826.10060043,0.00018798,2]
[330465005,1719451833138,-300.55498714,0.00018798,2]
[330465007,1719451833147,-190.79546937,0.00018798,2]
[330465009,1719451833156,-30000.0,0.00018798,2]
[330465011,1719451833166,-4595.84080058,0.00018996,2]
[330465013,1719451833175,-811.36838194,0.00019039,3]
[330465015,1719451833184,-163.724839,0.00019178,2]
[330465017,1719451833193,-160.0,0.00020839,5]
[330465019,1719451833202,-750.0,0.00021096,2]
[330465021,1719451833212,-156.87943307,0.00021795,2]
[330465023,1719451833221,-166.666666,0.00021918,2]
[330465025,1719451833230,-179.69238746,0.00022176,2]
[330465027,1719451833239,-282.50490855,0.00022236,2]
[330465029,1719451833249,-235.3026276,0.00022236,2]
[330465031,1719451833258,-441.22501591,0.00022236,2]
[330465279,1719451839172,-601.80201928,0.0002,2]
[330465280,1719451839182,-3729.15861934,0.00022236,2]
[330465281,1719451839192,-878.62139978,0.00022238,2]
[330465282,1719451839202,-1000.0,0.00022366,2]
[330465283,1719451839211,-159.99540173,0.0002242,2]
[330465284,1719451839220,-1085.46626678,0.0002243,2]
[330465286,1719451839229,-166.666666,0.00022431,2]
[330465287,1719451839239,-5926.19523831,0.00022941,2]
[330465289,1719451839248,-166.666666,0.00022944,2]
[330465291,1719451839257,-241.81182628,0.00023,2]
[330465293,1719451839266,-166.666666,0.00023456,2]
[330465295,1719451839276,-500.000001,0.00023736,2]
[330465296,1719451839285,-179.69238742,0.000238,2]
[330465297,1719451839295,-1182.2419965,0.00023966,4]
[330465386,1719451877786,187.07708066,0.00012,2]
[330465387,1719451885788,1950.39313162,0.00012,4]
[330465395,1719452234251,0.01260934,0.000297,120]
[330466355,1719453272586,176.56476133,0.000272,120]
[330466357,1719453890413,321.80777467,0.00027397,120]
[330466593,1719454315382,2104.74,0.00026,120]
[330466594,1719454518774,3012.0,0.00024,60]
[330466841,1719455436627,-159.210832,0.00014795,2]
[330466842,1719455436660,-510.82351826,0.00015,2]
[330466843,1719455436705,-157.13464267,0.00015,2]
[330466844,1719455436736,-420.16304972,0.00015,2]
[330467280,1719455682569,636.65202282,9.999e-05,2]
[330467281,1719455701504,227.96810642,9.999e-05,2]
[330467287,1719455946732,186.56427884,0.0001212,2]
[330467288,1719455977254,155.32557212,9.999e-05,2]
[330467290,1719456051524,1188.05560551,9.999e-05,2]
[330467291,1719456122420,509.32865033,0.0001212,2]
[330467292,1719456293102,155.1759643,9.999e-05,2]
[330467293,1719456306082,155.0867469,9.999e-05,2]
[330467294,1719456454283,435.78774982,9.999e-05,2]
[330467295,1719456490192,155.03607603,9.999e-05,2]
[330467296,1719456599814,-155.00054135,0.00014794,2]
[330467297,1719456599843,-193.27677076,0.00014794,2]
[330467298,1719456599872,-239.83391257,0.00014794,2]
[330467372,1719456638227,-667.95816093,0.00015,2]
[330467373,1719456638237,-27.52266005,0.00016255,2]
[330467400,1719456833936,497.28485646,9.999e-05,2]
[330467401,1719456870531,287.51530872,9.999e-05,2]
[330467402,1719456965056,1085.00294421,9.999e-05,4]
[330467403,1719457104171,155.35476702,0.0001212,2]
[330467404,1719457435983,1814.35,0.00026,120]
[330467408,1719457640109,310.95539304,9.999e-05,2]
[330467444,1719457834454,-434.4293937,0.00015,2]
[330467446,1719457834466,-233.52876723,0.00015,2]
[330467447,1719457834476,-300.0,0.00017221,2]
[330467448,1719457834485,-151.0,0.00017222,2]
[330467449,1719457834495,-151.0,0.00017222,2]
[330467450,1719457834504,-151.0,0.00017222,2]
[330467451,1719457834513,-252.58337434,0.00017222,2]
[330467452,1719457834522,-151.0,0.00017222,2]
[330467453,1719457834532,-268.393619,0.00017222,2]
[330467454,1719457834542,-151.0,0.00017222,2]
[330467455,1719457834552,-151.0,0.00017222,2]
[330467456,1719457834562,-151.0,0.00017222,2]
[330467457,1719457834575,-151.0,0.00017222,2]
[330467458,1719457834585,-151.0,0.00017222,2]
[330467459,1719457834594,-151.0,0.00017222,2]
[330467460,1719457834603,-151.0,0.00017222,2]
[330467461,1719457834614,-151.0,0.00017222,2]
[330467462,1719457834623,-151.0,0.00017222,2]
[330467463,1719457834641,-151.0,0.00017222,2]
[330467464,1719457834657,-151.0,0.00017222,2]
[330467465,1719457834668,-151.0,0.00017222,2]
[330467466,1719457834678,-271.696341,0.00017222,2]